[Event "Hungarian Youth-ch I 2024"]
[Site "Szolnok"]
[Date "2024.04.03"]
[Round "4.24"]
[White "Beznicza, Mira"]
[Black "Kovacs, Reka"]
[Result "0-1"]
[ECO "C77"]
[WhiteElo "1801"]
[BlackElo "1855"]
[Annotator "NA RC"]
[PlyCount "140"]
[EventDate "2024.03.31"]
[EventType "swiss"]
[EventCountry "HUN"]
[SourceTitle "playchess.com"]
[Source "ChessBase"]
[SourceQuality "1"]
[TimeControl "5400+30"]

1. e4 {[%emt 0:00:04]} e5 {[%emt 0:00:05]} 2. Nf3 {[%emt 0:00:07]} Nc6 {[%emt 0:00:04]} 3. Bb5 {[%emt 0:00:05]} a6 {[%emt 0:00:07]} 4. Ba4 {[%emt 0:00:06]} Nf6 {[%emt 0:00:08]} 5. d4 {[%emt 0:00:11]} exd4 {[%emt 0:00:16]} 6. O-O {[%emt 0:00:30]} Be7 {[%emt 0:01:18]} 7. Re1 {[%emt 0:05:25]} b5 {[%emt 0:10:57]} 8. Bb3 {[%emt 0:06:25]} d6 {[%emt 0:01:09]} 9. Bd5 {[%emt 0:14:09]} Nxd5 {[%emt 0:00:15]} 10. exd5 {[%emt 0:00:13]} Ne5 {[%emt 0:00:17]} 11. Nxd4 {[%emt 0:08:15]} O-O {[%emt 0:05:39]} 12. Bf4 {[%emt 0:07:51]} Bf6 {[%emt 0:05:21]} 13. Nc3 {[%emt 0:08:31]} Bd7 {[%emt 0:05:36]} 14. Ne4 {[%emt 0:02:52]} Nc4 {[%emt 0:01:41]} 15. Rb1 {[%emt 0:01:47]} Nb6 {[%emt 0:07:22]} 16. Ne2 {[%emt 0:03:57]} Nc4 {[%emt 0:06:32]} 17. Nd4 {[%emt 0:05:06]} Re8 {[%emt 0:01:51]} 18. Qd3 {[%emt 0:05:54]} Ne5 {[%emt 0:07:38]} 19. Qd2 {[%emt 0:02:21]} Nc4 {[%emt 0:15:45]} 20. Qd3 {[%emt 0:02:26]} Nb6 {[%emt 0:02:58]} 21. Ne2 {[%emt 0:03:44]} Bf5 {[%emt 0:04:01]} 22. N2g3 {[%emt 0:02:20]} Bg6 {[%emt 0:02:28]} 23. b3 {[%emt 0:03:18]} Nd7 {[%emt 0:01:40]} 24. Qd2 {[%emt 0:01:02]} Be5 {[%emt 0:04:22]} 25. Bxe5 {[%emt 0:04:18]} dxe5 {[%emt 0:01:39]} 26. Rbc1 {[%emt 0:01:24]} h6 {[%emt 0:01:40]} 27. f4 {[%emt 0:03:30]} f5 {[%emt 0:02:32]} 28. Nf2 {[%emt 0:01:10]} Qf6 {[%emt 0:03:45]} 29. c4 {[%emt 0:01:40]} bxc4 {[%emt 0:02:22]} 30. Rxc4 {[%emt 0:02:49]} exf4 {[%emt 0:00:21]} 31. Rxe8+ {[%emt 0:01:40]} Rxe8 {[%emt 0:00:14]} 32. Qxf4 {[%emt 0:01:25]} Re1+ {[%emt 0:01:58]} 33. Nf1 {[%emt 0:00:06]} Bh5 {[%emt 0:02:21]} 34. Rxc7 {[%emt 0:01:41]} Be2 {[%emt 0:00:20]} 35. Rc8+ {[%emt 0:00:22]} Nf8 {[%emt 0:01:44]} 36. Rc1 {[%emt 0:00:08]} Rxf1+ {[%emt 0:00:22]} 37. Rxf1 {[%emt 0:00:09]} Bxf1 {[%emt 0:00:04]} 38. Kxf1 {[%emt 0:00:04]} Qa1+ {[%emt 0:00:05]} 39. Ke2 {[%emt 0:00:08]} Qxa2+ {[%emt 0:00:09]} 40. Qd2 {[%emt 0:00:20]} Qxb3 {[%emt 0:00:26]} 41. d6 {[%emt 0:00:18]} Nd7 {[%emt 0:00:35]} 42. Nh3 {[%emt 0:00:41]} Qc4+ {[%emt 0:00:24]} 43. Ke1 {[%emt 0:00:36]} Qe4+ {[%emt 0:01:29]} 44. Kf2 {[%emt 0:00:28]} Qc4 {[%emt 0:01:55]} 45. Qe3 {[%emt 0:01:37]} Qe4 {[%emt 0:00:33]} 46. Qb3+ {[%emt 0:00:28]} Kf8 {[%emt 0:00:23]} 47. Qd1 {[%emt 0:00:54]} a5 {[%emt 0:00:19]} 48. g3 {[%emt 0:00:19]} a4 {[%emt 0:00:27]} 49. Nf4 {[%emt 0:00:18]} Kf7 {[%emt 0:00:13]} 50. Qd2 {[%emt 0:00:22]} g5 {[%emt 0:00:34]} 51. Qa2+ {[%emt 0:00:22]} Kf6 {[%emt 0:00:28]} 52. Qb2+ {[%emt 0:00:47]} Qe5 {[%emt 0:00:26]} 53. Nd5+ {[%emt 0:00:43]} Ke6 {[%emt 0:00:10]} 54. Nc7+ {[%emt 0:01:32]} Kxd6 {[%emt 0:00:17]} 55. Nb5+ {[%emt 0:00:06]} Kc6 {[%emt 0:00:54]} 56. Nd4+ {[%emt 0:00:27]} Kd5 {[%emt 0:00:34]} 57. Qb7+ {[%emt 0:00:30]} Kc4 {[%emt 0:00:56]} 58. Qa6+ {[%emt 0:00:25]} Kxd4 {[%emt 0:00:27]} 59. Qxa4+ {[%emt 0:00:07]} Kc5 {[%emt 0:00:18]} 60. Qxd7 {[%emt 0:00:15]} Qd4+ {[%emt 0:00:03]} 61. Qxd4+ {[%emt 0:00:08]} Kxd4 {[%emt 0:00:04]} 62. Kf3 {[%emt 0:00:06]} Kd3 {[%emt 0:00:33]} 63. h3 {[%emt 0:00:31]} Kd4 {[%emt 0:00:26]} 64. h4 {[%emt 0:00:34]} gxh4 {[%emt 0:00:33]} 65. gxh4 {[%emt 0:00:10]} Ke5 {[%emt 0:00:05]} 66. Ke3 {[%emt 0:00:22]} f4+ {[%emt 0:00:04]} 67. Kf3 {[%emt 0:00:08]} Kf5 {[%emt 0:00:17]} 68. h5 {[%emt 0:01:20]} Kg5 {[%emt 0:00:06]} 69. Ke4 {[%emt 0:00:34]} Kg4 {[%emt 0:00:05]} 70. Ke5 {[%emt 0:00:17]} f3 {[%emt 0:00:13]} 0-1

[Event "Hungarian Youth-ch I 2024"]
[Site "Szolnok"]
[Date "2024.04.03"]
[Round "4.25"]
[White "Karacsonyi, Luca"]
[Black "Toth, Timea"]
[Result "1-0"]
[ECO "B22"]
[WhiteElo "1956"]
[BlackElo "1978"]
[Annotator "NA RC"]
[PlyCount "41"]
[EventDate "2024.03.31"]
[EventType "swiss"]
[EventCountry "HUN"]
[SourceTitle "playchess.com"]
[Source "ChessBase"]
[SourceQuality "1"]
[TimeControl "5400+30"]

1. e4 {[%emt 0:00:03]} c5 {[%emt 0:00:02]} 2. c3 {[%emt 0:00:05]} d5 {[%emt 0:00:06]} 3. exd5 {[%emt 0:00:05]} Qxd5 {[%emt 0:00:05]} 4. d4 {[%emt 0:00:04]} Nf6 {[%emt 0:00:18]} 5. Nf3 {[%emt 0:00:09]} g6 {[%emt 0:00:21]} 6. Be3 {[%emt 0:07:26]} Ng4 {[%emt 0:02:20]} 7. Nbd2 {[%emt 0:11:36]} Bg7 {[%emt 0:12:35]} 8. Bc4 $14 {[%emt 0:03:58]} ({Worse is} 8. dxc5 Nxe3 9. fxe3 Qxc5 $17) 8... Nxe3 {[%emt 0:07:35]} 9. fxe3 {[%emt 0:00:43]} Qc6 {[%emt 0:01:14]} 10. O-O {[%emt 0:02:32]} O-O {[%emt 0:00:37]} 11. Ng5 {[%emt 0:08:26]} Bf6 {[%emt 0:05:41]} 12. Nge4 {[%emt 0:04:45]} b5 {[%emt 0:08:13]} 13. Nxf6+ {[%emt 0:05:01]} exf6 {[%emt 0:00:06]} 14. Be2 {[%emt 0:04:37]} Qb6 {[%emt 0:09:31]} 15. Bf3 {[%emt 0:04:33]} Nc6 {[%emt 0:00:33]} 16. Ne4 {[%emt 0:00:49]} cxd4 {[%emt 0:07:26]} 17. Nxf6+ {[%emt 0:01:17]} Kg7 {[%emt 0:00:06]} 18. Bxc6 {[%emt 0:02:21]} Qxc6 {[%emt 0:00:09]} 19. Qxd4 {[%emt 0:00:11]} Bb7 {[%emt 0:03:13]} 20. Ne8+ {[%emt 0:00:17]} Kh6 {[%emt 0:00:52]} 21. Qh4# {[%emt 0:00:05]} 1-0

[Event "Hungarian Youth-ch I 2024"]
[Site "Szolnok"]
[Date "2024.04.03"]
[Round "4.26"]
[White "Bende, Eniko Tunde"]
[Black "Balazs, Sztella Anna"]
[Result "1-0"]
[ECO "B22"]
[WhiteElo "1650"]
[BlackElo "1805"]
[Annotator "NA RC"]
[PlyCount "75"]
[EventDate "2024.03.31"]
[EventType "swiss"]
[EventCountry "HUN"]
[SourceTitle "playchess.com"]
[Source "ChessBase"]
[SourceQuality "1"]
[TimeControl "5400+30"]

1. e4 {[%emt 0:00:01]} c5 {[%emt 0:00:05]} 2. c3 {[%emt 0:00:12]} Nf6 {[%emt 0:00:05]} 3. e5 {[%emt 0:00:11]} Nd5 {[%emt 0:00:03]} 4. d4 {[%emt 0:00:10]} d6 {[%emt 0:00:05]} 5. Nf3 {[%emt 0:00:21]} cxd4 {[%emt 0:00:25]} 6. cxd4 {[%emt 0:00:15]} Nc6 {[%emt 0:00:04]} 7. Bc4 {[%emt 0:00:25]} Nb6 {[%emt 0:00:05]} 8. Bb5 {[%emt 0:00:39]} dxe5 {[%emt 0:00:54]} 9. Nxe5 {[%emt 0:00:21]} Bd7 {[%emt 0:00:10]} 10. Bxc6 {[%emt 0:00:41]} Bxc6 {[%emt 0:00:09]} 11. Nxc6 {[%emt 0:00:33]} bxc6 {[%emt 0:00:04]} 12. O-O {[%emt 0:00:22]} g6 {[%emt 0:00:34]} 13. Nc3 {[%emt 0:00:32]} Bg7 {[%emt 0:00:23]} 14. Be3 {[%emt 0:00:33]} O-O {[%emt 0:00:45]} 15. Qf3 {[%emt 0:01:25]} Qd7 {[%emt 0:00:42]} 16. Rfd1 {[%emt 0:00:48]} Rfd8 {[%emt 0:01:23]} 17. Rac1 {[%emt 0:01:56]} Rac8 {[%emt 0:00:46]} 18. h3 {[%emt 0:01:20]} Qb7 {[%emt 0:10:08]} 19. b3 {[%emt 0:02:45]} Nd5 {[%emt 0:05:17]} 20. Ne4 {[%emt 0:04:44]} Qa6 {[%emt 0:05:22]} 21. Nc5 {[%emt 0:07:57]} Qb6 {[%emt 0:04:51]} 22. Qg3 {[%emt 0:08:00]} Nc7 {[%emt 0:16:42]} 23. a4 {[%emt 0:06:28]} Rd5 {[%emt 0:03:44]} 24. Rd2 {[%emt 0:09:05]} Rcd8 {[%emt 0:03:17]} 25. Rcd1 {[%emt 0:05:23]} Ne8 {[%emt 0:01:49]} 26. a5 {[%emt 0:04:30]} Qb4 {[%emt 0:02:05]} 27. Qf4 {[%emt 0:08:28]} Nd6 {[%emt 0:02:01]} 28. g4 {[%emt 0:03:58]} Qxa5 {[%emt 0:03:27]} 29. f3 {[%emt 0:12:45]} Qb4 {[%emt 0:03:08]} 30. Qg3 {[%emt 0:07:40]} Nb7 {[%emt 0:02:14]} 31. Nxb7 {[%emt 0:00:59]} Qxb7 {[%emt 0:00:06]} 32. f4 {[%emt 0:06:59]} Qxb3 {[%emt 0:01:35]} 33. Rd3 {[%emt 0:01:49]} Qc4 {[%emt 0:00:19]} 34. f5 {[%emt 0:01:22]} Bxd4 {[%emt 0:05:16]} 35. Bxd4 {[%emt 0:00:28]} Rxd4 {[%emt 0:00:07]} 36. Rxd4 {[%emt 0:00:17]} Rxd4 {[%emt 0:00:05]} 37. Qb8+ {[%emt 0:00:03]} Kg7 {[%emt 0:00:15]} 38. Qe5+ {[%emt 0:00:09]} 1-0

[Event "Hungarian Youth-ch I 2024"]
[Site "Szolnok"]
[Date "2024.04.03"]
[Round "4.27"]
[White "Szarvas, Nora"]
[Black "Nandin-Erdene, Davaademberel"]
[Result "1/2-1/2"]
[ECO "B13"]
[WhiteElo "1955"]
[BlackElo "1978"]
[Annotator "NA RC"]
[PlyCount "72"]
[EventDate "2024.03.31"]
[EventType "swiss"]
[EventCountry "HUN"]
[SourceTitle "playchess.com"]
[Source "ChessBase"]
[SourceQuality "1"]
[TimeControl "5400+30"]

1. e4 {[%emt 0:00:05]} c6 {[%emt 0:00:05]} 2. d4 {[%emt 0:00:17]} d5 {[%emt 0:00:06]} 3. exd5 {[%emt 0:00:06]} cxd5 {[%emt 0:00:10]} 4. Nf3 {[%emt 0:00:11]} Nc6 {[%emt 0:01:22]} 5. Bb5 {[%emt 0:00:20]} a6 {[%emt 0:04:07]} 6. Bxc6+ {[%emt 0:02:03]} bxc6 {[%emt 0:00:05]} 7. Ne5 {[%emt 0:04:40]} Bb7 {[%emt 0:02:35]} 8. c4 {[%emt 0:05:50]} g6 {[%emt 0:06:52]} 9. Nc3 {[%emt 0:06:19]} Nf6 $16 {[%emt 0:03:28]} 10. c5 {[%emt 0:06:02]} Nd7 {[%emt 0:10:13]} 11. Qe2 {[%emt 0:03:22]} Bg7 {[%emt 0:04:03]} 12. Bf4 {[%emt 0:00:46]} O-O {[%emt 0:03:25]} 13. O-O {[%emt 0:06:02]} Nxe5 {[%emt 0:01:17]} 14. Bxe5 {[%emt 0:02:58]} f6 {[%emt 0:16:08]} 15. Bg3 {[%emt 0:02:19]} Bc8 {[%emt 0:01:43]} 16. Rfe1 {[%emt 0:06:09]} Re8 {[%emt 0:00:35]} 17. f4 {[%emt 0:02:05]} Bf5 {[%emt 0:01:22]} 18. h3 {[%emt 0:03:57]} Kh8 {[%emt 0:08:21]} 19. Bh2 {[%emt 0:01:19]} Qd7 {[%emt 0:06:55]} 20. Rad1 {[%emt 0:06:28]} Qa7 {[%emt 0:02:02]} 21. g4 {[%emt 0:03:48]} Bd7 {[%emt 0:01:37]} 22. Na4 {[%emt 0:00:32]} Rad8 {[%emt 0:04:56]} 23. Nb6 {[%emt 0:03:20]} e6 {[%emt 0:00:13]} 24. Rd3 {[%emt 0:01:12]} e5 {[%emt 0:04:32]} 25. fxe5 {[%emt 0:01:17]} fxe5 {[%emt 0:00:05]} 26. Bxe5 {[%emt 0:00:29]} Bxe5 {[%emt 0:00:34]} 27. dxe5 {[%emt 0:00:08]} Be6 {[%emt 0:00:27]} 28. Ra3 {[%emt 0:00:47]} Qe7 {[%emt 0:00:45]} 29. Qf2 {[%emt 0:03:13]} Rf8 {[%emt 0:00:27]} 30. Qd4 {[%emt 0:00:33]} Qh4 {[%emt 0:01:10]} 31. Rf1 {[%emt 0:01:39]} Rxf1+ {[%emt 0:00:45]} 32. Kxf1 {[%emt 0:00:06]} Rf8+ {[%emt 0:00:12]} 33. Kg2 {[%emt 0:01:07]} Qe1 {[%emt 0:05:02]} 34. Rf3 {[%emt 0:01:40]} Rxf3 {[%emt 0:00:51]} 35. Kxf3 {[%emt 0:00:04]} Qf1+ {[%emt 0:00:35]} 36. Kg3 {[%emt 0:00:37]} Qe1+ {[%emt 0:00:13]} 1/2-1/2

[Event "Hungarian Youth-ch I 2024"]
[Site "Szolnok"]
[Date "2024.04.03"]
[Round "5.1"]
[White "Kocsmar, Akos"]
[Black "Fule, Simon"]
[Result "1/2-1/2"]
[ECO "E71"]
[WhiteElo "2029"]
[BlackElo "2262"]
[Annotator "RC"]
[PlyCount "36"]
[EventDate "2024.03.31"]
[EventType "swiss"]
[EventCountry "HUN"]
[SourceTitle "playchess.com"]
[Source "ChessBase"]
[SourceQuality "1"]
[TimeControl "5400+30"]

1. d4 {[%emt 0:00:02]} Nf6 {[%emt 0:05:05]} 2. c4 {[%emt 0:00:02]} d6 {[%emt 0:00:13]} 3. Nc3 {[%emt 0:00:07]} g6 {[%emt 0:00:22]} 4. e4 {[%emt 0:00:09]} Bg7 {[%emt 0:00:05]} 5. h3 {[%emt 0:00:09]} O-O {[%emt 0:00:29]} 6. Be3 {[%emt 0:00:05]} e5 {[%emt 0:00:44]} 7. d5 {[%emt 0:00:08]} Na6 {[%emt 0:04:06]} 8. g4 {[%emt 0:00:13]} Nc5 {[%emt 0:00:05]} 9. f3 {[%emt 0:00:03]} a5 {[%emt 0:02:00]} 10. Qd2 {[%emt 0:01:16]} c6 {[%emt 0:00:35]} 11. Nge2 {[%emt 0:00:57]} cxd5 {[%emt 0:03:09]} 12. cxd5 {[%emt 0:00:25]} Bd7 {[%emt 0:04:24]} 13. Ng3 {[%emt 0:04:49]} a4 {[%emt 0:03:43]} 14. h4 {[%emt 0:00:51]} Qa5 {[%emt 0:07:47]} 15. h5 {[%emt 0:12:25]} Rfc8 {[%emt 0:12:25]} 16. g5 {[%emt 0:19:52]} Ne8 {[%emt 0:06:18]} 17. Nb1 {[%emt 0:00:33]} Nc7 {[%emt 0:34:36]} 18. Na3 {[%emt 0:05:23]} Nb5 {[%emt 0:01:17]} 1/2-1/2

[Event "Hungarian Youth-ch I 2024"]
[Site "Szolnok"]
[Date "2024.04.03"]
[Round "5.2"]
[White "Gathi, Donat"]
[Black "Bekesi, Aron"]
[Result "1-0"]
[ECO "C78"]
[WhiteElo "2192"]
[BlackElo "1783"]
[Annotator "RC"]
[PlyCount "117"]
[EventDate "2024.03.31"]
[EventType "swiss"]
[EventCountry "HUN"]
[SourceTitle "playchess.com"]
[Source "ChessBase"]
[SourceQuality "1"]
[TimeControl "5400+30"]

1. e4 {[%emt 0:00:03]} e5 {[%emt 0:00:08]} 2. Nf3 {[%emt 0:00:06]} Nc6 {[%emt 0:00:05]} 3. Bb5 {[%emt 0:00:05]} a6 {[%emt 0:00:07]} 4. Ba4 {[%emt 0:00:03]} Nf6 {[%emt 0:00:08]} 5. O-O {[%emt 0:00:09]} b5 {[%emt 0:00:12]} 6. Bb3 {[%emt 0:00:08]} Bc5 {[%emt 0:00:07]} 7. c3 {[%emt 0:00:24]} d6 {[%emt 0:00:49]} 8. d4 {[%emt 0:00:07]} Bb6 {[%emt 0:01:43]} 9. h3 {[%emt 0:00:52]} O-O {[%emt 0:01:24]} 10. Re1 {[%emt 0:01:43]} Bd7 {[%emt 0:15:01]} 11. a4 {[%emt 0:04:16]} Qe7 {[%emt 0:03:26]} 12. Bc2 {[%emt 0:03:11]} h6 {[%emt 0:10:19]} 13. d5 {[%emt 0:05:05]} Na5 {[%emt 0:02:26]} 14. Nbd2 {[%emt 0:01:20]} c5 {[%emt 0:02:44]} 15. Nf1 {[%emt 0:02:33]} c4 {[%emt 0:01:35]} 16. Ng3 {[%emt 0:02:48]} Nh7 {[%emt 0:07:27]} 17. Qe2 {[%emt 0:03:40]} Nb7 {[%emt 0:01:48]} 18. Kh1 {[%emt 0:07:12]} Nc5 {[%emt 0:08:38]} 19. Nh2 {[%emt 0:06:03]} Qh4 {[%emt 0:10:48]} 20. Nf5 {[%emt 0:13:55]} Bxf5 {[%emt 0:00:58]} 21. exf5 {[%emt 0:00:03]} Nf6 {[%emt 0:07:56]} 22. Be3 {[%emt 0:12:45]} Nxd5 {[%emt 0:11:09]} 23. Bxc5 {[%emt 0:00:14]} dxc5 {[%emt 0:01:49]} 24. Qxe5 {[%emt 0:02:38]} Rad8 {[%emt 0:02:35]} 25. axb5 {[%emt 0:07:27]} axb5 {[%emt 0:00:42]} 26. Nf3 {[%emt 0:01:13]} Qf4 {[%emt 0:01:17]} 27. Qxf4 {[%emt 0:03:14]} Nxf4 {[%emt 0:00:12]} 28. Ra6 {[%emt 0:00:05]} Bc7 {[%emt 0:02:13]} 29. Rc6 {[%emt 0:01:03]} Bd6 {[%emt 0:00:01]} 30. Rb6 {[%emt 0:04:13]} b4 {[%emt 0:00:55]} 31. Be4 {[%emt 0:03:18]} Nd3 {[%emt 0:01:12]} 32. Bxd3 {[%emt 0:00:39]} cxd3 {[%emt 0:00:01]} 33. g3 {[%emt 0:02:28]} bxc3 {[%emt 0:01:28]} 34. bxc3 {[%emt 0:00:02]} Bb8 {[%emt 0:01:59]} 35. f6 {[%emt 0:03:24]} d2 {[%emt 0:01:37]} 36. Rd1 {[%emt 0:00:03]} Rd3 {[%emt 0:00:34]} 37. fxg7 {[%emt 0:00:26]} Kxg7 {[%emt 0:00:27]} 38. Kg2 {[%emt 0:01:25]} Rfd8 {[%emt 0:00:25]} 39. Nh4 {[%emt 0:02:35]} Rxc3 {[%emt 0:01:52]} 40. Nf5+ {[%emt 0:00:05]} Kh7 {[%emt 0:01:19]} 41. Rxh6+ {[%emt 0:00:20]} Kg8 {[%emt 0:00:04]} 42. Kf1 {[%emt 0:02:01]} Rc1 {[%emt 0:00:41]} 43. Ke2 {[%emt 0:00:23]} Rxd1 {[%emt 0:00:46]} 44. Kxd1 {[%emt 0:00:01]} Be5 {[%emt 0:00:48]} 45. Rc6 {[%emt 0:00:33]} Bd4 {[%emt 0:00:32]} 46. Nxd4 {[%emt 0:00:19]} cxd4 {[%emt 0:00:25]} 47. Kxd2 {[%emt 0:00:02]} Kg7 {[%emt 0:00:33]} 48. Kd3 {[%emt 0:00:06]} f6 {[%emt 0:00:31]} 49. Rc4 {[%emt 0:00:07]} Kg6 {[%emt 0:00:20]} 50. Rxd4 {[%emt 0:00:05]} Rh8 {[%emt 0:00:26]} 51. h4 {[%emt 0:00:04]} Re8 {[%emt 0:00:36]} 52. Re4 {[%emt 0:00:06]} Ra8 {[%emt 0:00:09]} 53. Ke3 {[%emt 0:00:14]} Ra3+ {[%emt 0:00:12]} 54. Kf4 {[%emt 0:00:06]} Ra2 {[%emt 0:00:19]} 55. f3 {[%emt 0:00:05]} Ra5 {[%emt 0:00:12]} 56. g4 {[%emt 0:00:14]} Ra6 {[%emt 0:00:24]} 57. h5+ {[%emt 0:00:14]} Kg7 {[%emt 0:00:14]} 58. Re7+ {[%emt 0:00:12]} Kh6 {[%emt 0:00:26]} 59. Kf5 {[%emt 0:00:24]} 1-0

[Event "Hungarian Youth-ch I 2024"]
[Site "Szolnok"]
[Date "2024.04.03"]
[Round "5.3"]
[White "Szikszai, Bertalan"]
[Black "Frank, Balint"]
[Result "1-0"]
[ECO "C54"]
[WhiteElo "2312"]
[BlackElo "1939"]
[Annotator "RC"]
[PlyCount "91"]
[EventDate "2024.03.31"]
[EventType "swiss"]
[EventCountry "HUN"]
[SourceTitle "playchess.com"]
[Source "ChessBase"]
[SourceQuality "1"]
[TimeControl "5400+30"]

1. e4 {[%emt 0:01:03]} e5 {[%emt 0:00:33]} 2. Nf3 {[%emt 0:00:08]} Nc6 {[%emt 0:00:04]} 3. Bc4 {[%emt 0:00:13]} Bc5 {[%emt 0:00:06]} 4. c3 {[%emt 0:00:16]} Nf6 {[%emt 0:00:11]} 5. d3 {[%emt 0:00:24]} O-O {[%emt 0:00:13]} 6. O-O {[%emt 0:01:35]} d6 {[%emt 0:00:17]} 7. Re1 {[%emt 0:04:07]} a6 {[%emt 0:02:05]} 8. a4 {[%emt 0:02:28]} h6 {[%emt 0:03:07]} 9. h3 {[%emt 0:00:45]} Be6 {[%emt 0:01:41]} 10. Bxe6 {[%emt 0:05:21]} fxe6 {[%emt 0:00:08]} 11. b4 {[%emt 0:02:34]} Ba7 {[%emt 0:01:14]} 12. Be3 {[%emt 0:05:53]} Bxe3 {[%emt 0:03:19]} 13. Rxe3 {[%emt 0:00:37]} Qe8 {[%emt 0:02:50]} 14. Nbd2 {[%emt 0:02:10]} b5 {[%emt 0:03:26]} 15. Qb3 {[%emt 0:08:02]} Qf7 {[%emt 0:07:53]} 16. Rc1 {[%emt 0:15:07]} Nh5 {[%emt 0:08:33]} 17. g3 {[%emt 0:05:11]} d5 {[%emt 0:17:45]} 18. Re2 {[%emt 0:13:49]} Rad8 {[%emt 0:06:33]} 19. axb5 {[%emt 0:12:57]} axb5 {[%emt 0:00:07]} 20. Qc2 {[%emt 0:00:24]} Qg6 {[%emt 0:13:43]} 21. Kh2 {[%emt 0:00:10]} Rd7 {[%emt 0:00:15]} 22. Qd1 {[%emt 0:07:26]} dxe4 {[%emt 0:06:27]} 23. Rxe4 {[%emt 0:00:16]} Rxd3 {[%emt 0:01:39]} 24. Qe2 {[%emt 0:00:11]} Rfd8 {[%emt 0:02:52]} 25. Nb3 {[%emt 0:01:22]} Nf6 {[%emt 0:02:16]} 26. Re3 {[%emt 0:05:07]} Rxe3 {[%emt 0:14:27]} 27. Qxe3 {[%emt 0:00:21]} Qd3 {[%emt 0:01:01]} 28. Qxd3 {[%emt 0:03:15]} Rxd3 {[%emt 0:00:02]} 29. Ne1 {[%emt 0:00:21]} Rd6 {[%emt 0:00:45]} 30. Kg2 {[%emt 0:00:39]} Kf7 {[%emt 0:00:54]} 31. c4 {[%emt 0:01:32]} Nxb4 {[%emt 0:00:27]} 32. cxb5 {[%emt 0:00:07]} Nfd5 {[%emt 0:00:19]} 33. Nf3 {[%emt 0:00:40]} Nd3 {[%emt 0:00:56]} 34. Rc4 {[%emt 0:00:58]} Rb6 {[%emt 0:00:43]} 35. Nc5 {[%emt 0:00:32]} Nxc5 {[%emt 0:00:34]} 36. Rxc5 {[%emt 0:00:27]} Kf6 {[%emt 0:00:33]} 37. Nd2 {[%emt 0:00:27]} g5 {[%emt 0:00:31]} 38. Kf3 {[%emt 0:00:40]} Rb7 {[%emt 0:00:17]} 39. Ne4+ {[%emt 0:01:12]} Ke7 {[%emt 0:00:10]} 40. Kg4 {[%emt 0:00:26]} Nb4 {[%emt 0:00:53]} 41. Kh5 {[%emt 0:00:52]} Nd3 {[%emt 0:00:26]} 42. Rc3 {[%emt 0:00:09]} Nb4 {[%emt 0:00:19]} 43. Kxh6 {[%emt 0:00:27]} Rxb5 {[%emt 0:00:55]} 44. Rxc7+ {[%emt 0:00:07]} Kd8 {[%emt 0:00:10]} 45. Rf7 {[%emt 0:00:28]} Ke8 46. Nd6+ {[%emt 0:00:10]} 1-0

[Event "Hungarian Youth-ch I 2024"]
[Site "Szolnok"]
[Date "2024.04.03"]
[Round "5.4"]
[White "Borzsei, Andras"]
[Black "Herpai, Jozsef Matyas"]
[Result "1-0"]
[ECO "D35"]
[WhiteElo "2126"]
[BlackElo "2037"]
[Annotator "RC"]
[PlyCount "51"]
[EventDate "2024.03.31"]
[EventType "swiss"]
[EventCountry "HUN"]
[SourceTitle "playchess.com"]
[Source "ChessBase"]
[SourceQuality "1"]
[TimeControl "5400+30"]

1. d4 {[%emt 0:00:06]} Nf6 {[%emt 0:00:28]} 2. c4 {[%emt 0:00:04]} e6 {[%emt 0:00:04]} 3. Nc3 {[%emt 0:00:05]} d5 {[%emt 0:00:04]} 4. cxd5 {[%emt 0:00:07]} Nxd5 {[%emt 0:00:16]} 5. e4 {[%emt 0:00:09]} Nxc3 {[%emt 0:00:05]} 6. bxc3 {[%emt 0:00:05]} c5 {[%emt 0:00:08]} 7. Nf3 {[%emt 0:00:05]} cxd4 {[%emt 0:00:17]} 8. cxd4 {[%emt 0:00:02]} Bb4+ {[%emt 0:00:09]} 9. Bd2 {[%emt 0:00:04]} Bxd2+ {[%emt 0:00:05]} 10. Qxd2 {[%emt 0:00:05]} O-O {[%emt 0:00:46]} 11. Bc4 {[%emt 0:00:45]} Nd7 {[%emt 0:02:06]} 12. O-O {[%emt 0:04:18]} b6 {[%emt 0:00:55]} 13. Rfe1 {[%emt 0:17:14]} Bb7 {[%emt 0:00:51]} 14. Rad1 {[%emt 0:00:31]} Rc8 {[%emt 0:00:50]} 15. Bb3 {[%emt 0:00:46]} Nf6 {[%emt 0:03:42]} 16. d5 {[%emt 0:03:23]} exd5 {[%emt 0:10:31]} 17. exd5 {[%emt 0:00:08]} Rc5 {[%emt 0:05:09]} 18. d6 {[%emt 0:11:45]} Bd5 {[%emt 0:28:45]} 19. Bxd5 {[%emt 0:24:27]} Rxd5 {[%emt 0:02:46]} 20. Qb4 {[%emt 0:00:14]} Rxd1 {[%emt 0:04:19]} 21. Rxd1 {[%emt 0:00:11]} Re8 {[%emt 0:00:53]} 22. d7 {[%emt 0:06:22]} Re4 {[%emt 0:05:02]} 23. Qc3 {[%emt 0:01:49]} Nxd7 {[%emt 0:07:19]} 24. Ne5 {[%emt 0:01:36]} Qe8 {[%emt 0:10:14]} 25. Nxd7 {[%emt 0:03:37]} Re7 {[%emt 0:00:12]} 26. Ne5 {[%emt 0:01:08]} 1-0